Workbook

Sheet Bid Tabulation PD17-18.088
A1: Attachment A
A3: CR 292 Barrancas Avenue Beautification Project
A5: Bid Item No. | B5: Description | C5: Quantity | D5: Units | E5: Unit Price | F5: Item Price
A6: 1 | B6: Mobilization | C6: 1 | D6: LS | F6: =C6*E6 -> $0.00
A7: 2 | B7: Maintenance of Traffic (Includes Plan, Notification, Implementation, and PCMS's - 7 days prior to start of construction) | C7: 1 | D7: LS | F7: =C7*E7 -> $0.00
A8: 3 | B8: Erosion Control (Includes SWPPP Plan, Implementation, maintenance, replacement, etc.) | C8: 1 | D8: LS | F8: $0.00
A9: 4 | B9: Clearing and Grubbing (Includes all above grade and below grade improvements as indicated and as necessary to facilitate new construction, and other work as indicated) | C9: 1 | D9: LS | F9: $0.00
A10: 5 | B10: Irrigation (Includes all necessary connections and fittings) | C10: 1 | D10: LS | F10: $0.00
A11: 6 | B11: Welcome Sign (Includes construction and installation) | C11: 1 | D11: LS | F11: $0.00
A12: 7 | B12: Directional Bores | C12: 5 | D12: EA | F12: $0.00
A13: 8 | B13: Backflow Preventer w/ Concrete Enclosure (Includes all necessary connections and fittings) | C13: 3 | D13: EA | F13: $0.00
A14: 9 | B14: Install Water Meters provided by Peoples Water (Includes all necessary connections and fittings) | C14: 3 | D14: EA | F14: $0.00
A15: 10 | B15: Mushroom Compost | C15: 103 | D15: CY | F15: $0.00
A16: 11 | B16: Chaste Tree | C16: 1 | D16: EA | F16: $0.00
A17: 12 | B17: Blue Sedge | C17: 249 | D17: EA | F17: $0.00
A18: 13 | B18: Perennial Peanut | C18: 8,410 | D18: SF | F18: $0.00
A19: 14 | B19: Blue Chip Budleia | C19: 1,776 | D19: EA | F19: $0.00
A20: 15 | B20: Coontie | C20: 229 | D20: EA | F20: $0.00
A21: 16 | B21: Live Oak | C21: 2 | D21: EA | F21: $0.00
A22: 17 | B22: Tiger Eye Daisy | C22: 288 | D22: EA | F22: $0.00
A23: 18 | B23: Society Garlic | C23: 35 | D23: EA | F23: $0.00
A24: 19 | B24: Rose | C24: 96 | D24: EA | F24: $0.00
A25: 20 | B25: Blue Rug Juniper | C25: 427 | D25: EA | F25: =C25*E25 -> $0.00
A26: 21 | B26: Dwarf Fountain Grass | C26: 452 | D26: EA | F26: =C26*E26 -> $0.00
A27: 22 | B27: Pine Straw Mulch | C27: 23,112 | D27: SF | F27: $0.00
C30: BID TOTAL = | E30: =SUM(F6:F27) -> $0.00
A33: NOTE: | B33: County reserves the right to add or delete up to 25% of the plant material quantity based upon the unit prices during the shop drawing review process.

Sheet Totals (hidden)
A1: Rebel Road Drainage Improvements
A2: ENG1853
A4: Rebel Road Drainage Improvements
A5: Bid Item No. | B5: Description | C5: Quantity | D5: Units | E5: Unit Price | F5: Item Price
A6: 1 | B6: Mobilization | C6: 1 | D6: LS | E6: $1,800.00 | F6: =C6*E6 -> $1,800.00
A7: =A6+1 -> 2 | B7: Maintenance of Traffic (Includes Plan, Notification, and Implementation) | C7: 1 | D7: LS | E7: $10,000.00 | F7: =C7*E7 -> $10,000.00
A8: =A7+1 -> 3 | B8: Erosion Control (Includes SWPPP Plan, Implementation, NPDES General Permit, NOI, NOT, monitoring, replacement, etc.) | C8: 1 | D8: LS | E8: $1,500.00 | F8: $1,500.00
A9: 4 | B9: Clearing and Grubbing (Includes Removal of Existing Trees) | C9: 1 | D9: LS | E9: $1,000.00 | F9: $1,000.00
A10: 5 | B10: Remove and Re-Install Existing Concrete pad and Mail Kiosk | C10: 1 | D10: EA | E10: $750.00 | F10: $750.00
A11: 6 | B11: Remove and Re-Install Existing Brick Mailbox | C11: 2 | D11: EA | E11: $1,350.00 | F11: $2,700.00
A12: 7 | B12: Remove Existing Brick Mailbox and Replace with FDOT approved Heavy Duty Plastic Mailbox w/ Rear Door and Post (use if existing brick mailbox cannot be re-installed after removal) | C12: 2 | D12: EA | E12: $435.00 | F12: $870.00
A13: 8 | B13: Relocate Existing Mailbox | C13: =10+2+4+5 -> 21 | D13: EA | E13: $155.00 | F13: $3,255.00
A14: 9 | B14: Earthwork Fill (Borrow, FDOT Specification 120-2.2.2) | C14: 125 | D14: CY | E14: $12.00 | F14: $1,500.00
A15: 10 | B15: Earthwork Establishing Grade | C15: 3860 | D15: SY | E15: $1.90 | F15: $7,334.00
A16: 11 | B16: Remove and Replace Unsuitable Materials | C16: 100 | D16: CY | E16: $14.50 | F16: $1,450.00
A17: 12 | B17: 2" County Spec 2500 Type SP 12.5 Asphalt | C17: 202 | D17: SY | E17: $10.25 | F17: $2,070.50
A18: 13 | B18: Lateral Pavement Patch as per County Detail (6" GAB) | C18: =24+36+30+68+50 -> 208 | D18: SY | E18: $46.00 | F18: $9,568.00
A19: 14 | B19: Remove Existing Asphalt (Includes roadway, driveways, swales, ditches, flumes, etc.) | C19: =26+24+16+174+36+4+54+87+30+64+6+42+79+15+96+68+15+124+30+68+26+8+122+165+23+21+17 -> 1440 | D19: SY | E19: $3.00 | F19: $4,320.00
A20: 15 | B20: Saw cut Existing Asphalt | C20: 420 | D20: LF | E20: $2.35 | F20: $987.00
A21: 16 | B21: 6" Stabilized Subgrade, County Spec 2300 (For Driveways) | C21: 942 | D21: SY | E21: $3.25 | F21: $3,061.50
A22: 17 | B22: 12" Stabilized Subgrade, County Spec 2300 | C22: 202 | D22: SY | E22: $3.85 | F22: $777.70
A23: 18 | B23: 6" Graded Aggregate Base, County Spec 2400 | C23: 202 | D23: SY | E23: $13.40 | F23: $2,706.80
A24: 19 | B24: Type SP 12.5 Asphalt Overlay (110 lbs.per SY) | C24: 135 | D24: TON | E24: $120.00 | F24: $16,200.00
A25: 20 | B25: Remove Existing Roadway Base | C25: 165 | D25: SY | E25: $3.50 | F25: $577.50
A26: 21 | B26: Relocate Existing Traffic Signs | C26: 3 | D26: EA | E26: $43.00 | F26: $129.00
A27: 22 | B27: FDOT Type F Curb | C27: 80 | D27: LF | E27: $17.25 | F27: =C27*E27 -> $1,380.00
A28: 23 | B28: 1' Ribbon Curb, per County Detail | C28: =1050+1175 -> 2225 | D28: LF | E28: $12.00 | F28: $26,700.00
A29: 24 | B29: 4' Fiber Reinforced Concrete Driveway | C29: =767+26+23+22+21+22+21+21+19 -> 942 | D29: SY | E29: $34.50 | F29: $32,499.00
A30: 25 | B30: Fiber Reinforced Concrete Flume (Includes Concrete Flume around Type E Modified Inlet #25) | C30: 52 | D30: SY | E30: $57.00 | F30: $2,964.00
A31: 26 | B31: Remove Existing Concrete (Includes Driveways, Ditches, Swales, Flumes, etc.) | C31: =44+73+36+24+43+9+33+30+29+29+50+11+23 -> 434 | D31: SY | E31: $4.00 | F31: $1,736.00
A32: 27 | B32: Remove Existing Dirt/Gravel Driveway | C32: =42+42+48+45+28+25+31+40+56+26+19+19+13+19 -> 453 | D32: SY | E32: $1.75 | F32: $792.75
A33: 28 | B33: Remove Existing Curb | C33: 2190 | D33: LF | E33: $1.25 | F33: $2,737.50
A34: 29 | B34: Misc. Concrete | C34: 35 | D34: CY | E34: $350.00 | F34: $12,250.00
A35: 30 | B35: Ditch Bottom Inlet, Type C, 0'-6' Depth | C35: 5 | D35: EA | E35: $1,850.00 | F35: $9,250.00
A36: 31 | B36: Ditch Bottom Inlet, Type C, 6'-12' Depth | C36: 3 | D36: EA | E36: $2,750.00 | F36: $8,250.00
A37: 32 | B37: Ditch Bottom Inlet, Type E, 0'-6' Depth | C37: 5 | D37: EA | E37: $2,750.00 | F37: $13,750.00
A38: 33 | B38: Ditch Bottom Inlet, Type E, 6'-12' Depth | C38: 14 | D38: EA | E38: $4,200.00 | F38: $58,800.00
A39: 34 | B39: County Type A-1 Curb Inlet, 0'-6' Depth | C39: 2 | D39: EA | E39: $2,900.00 | F39: $5,800.00
A40: 35 | B40: Junction Box with Manhole, 6'-12' Depth | C40: 1 | D40: EA | E40: $3,100.00 | F40: $3,100.00
A41: 36 | B41: Remove Existing Ditch Bottom Inlet (Includes Top and Bottom) | C41: 1 | D41: EA | E41: $420.00 | F41: $420.00
A42: 37 | B42: Remove Existing Curb Inlet (Includes Top and Bottom) | C42: 2 | D42: EA | E42: $650.00 | F42: $1,300.00
A43: 38 | B43: Remove Existing Concrete Slab Spanning Ditch with Concrete Block Centerline Pier | C43: 1 | D43: EA | E43: $1,100.00 | F43: $1,100.00
A44: 39 | B44: 18" HDPE DW Pipe, 0'-6' Depth | C44: =139+133+104+113+64+92+166 -> 811 | D44: LF | E44: $30.50 | F44: $24,735.50
A45: 40 | B45: 24" HDPE DW Pipe, 0'-6' Depth | C45: =372+240 -> 612 | D45: LF | E45: $37.50 | F45: $22,950.00
A46: 41 | B46: 30" HDPE DW Pipe, 0'-6' Depth | C46: 479 | D46: LF | E46: $51.50 | F46: =C46*E46 -> $24,668.50
A47: 42 | B47: 30" HDPE DW Pipe, 6'-12' Depth | C47: 941 | D47: LF | E47: $61.50 | F47: $57,871.50
A48: 43 | B48: 36" HDPE DW Pipe, 0'-6' Depth | C48: 1190 | D48: LF | E48: $59.50 | F48: $70,805.00
A49: 44 | B49: 42" HDPE DW Pipe, 0'-6' Depth | C49: 32 | D49: LF | E49: $82.50 | F49: $2,640.00
A50: 45 | B50: 18" RCP Pipe, 0'-6' Depth | C50: =43+48 -> 91 | D50: LF | E50: $36.50 | F50: $3,321.50
A51: 46 | B51: 24" RCP Pipe, 0'-6' Depth | C51: =90+117 -> 207 | D51: LF | E51: $45.50 | F51: $9,418.50
A52: 47 | B52: 36" RCP Pipe, 0'-6' Depth | C52: =92+62 -> 154 | D52: LF | E52: $77.50 | F52: $11,935.00
A53: 48 | B53: 18" Mitered End Section (Includes Concrete Apron) | C53: 2 | D53: EA | E53: $1,000.00 | F53: $2,000.00
A54: 49 | B54: 42" RCP Mitered End Section (Includes Concrete Splash Pad with Rebar and Welded Wire Mesh) | C54: 1 | D54: EA | E54: $4,200.00 | F54: $4,200.00
A55: 50 | B55: Remove Existing Pipe | C55: 983 | D55: LF | E55: $20.00 | F55: $19,660.00
A56: 51 | B56: Remove Existing Headwall (Includes Concrete and Sandbag Headwalls) | C56: 24 | D56: EA | E56: $625.00 | F56: $15,000.00
A57: 52 | B57: Dewatering | C57: 1 | D57: DAY | E57: $500.00 | F57: $500.00
A58: 53 | B58: Relocate Existing Water Meter, Service, & Flush Hydrant | C58: 19 | D58: EA | E58: $435.00 | F58: =C58*E58 -> $8,265.00
A59: 54 | B59: Centipede Sod | C59: 3860 | D59: SY | E59: $3.10 | F59: $11,966.00
A60: 55 | B60: 18" Depth Rip Rap Rubble with 4" Bedding Stone and Filter Fabric | C60: 20 | D60: SY | E60: $125.00 | F60: $2,500.00
A61: 56 | B61: Remove Existing Rip Rap | C61: 28 | D61: SY | E61: $25.00 | F61: $700.00
A62: 57 | B62: Remove and Replace Existing Wood Landscaping | C62: 20 | D62: LF | E62: $15.00 | F62: $300.00
A63: 58 | B63: Remove and Replace Existing Wood Privacy Fence | C63: 105 | D63: LF | E63: $15.00 | F63: $1,575.00
C65: BID TOTAL = | E65: =SUM(F6:F63) -> $550,397.75
